bitfinex-derivatives/quotes_SOLF0:USTF0_20240930
["timestamp","ask_amount","ask_price","bid_price","bid_amount"]
[1727679296001,7.81,156.83,156.78,13.61177423]
[1727679296201,7.81,156.83,156.77,7.93502]
[1727679296411,3.1884,156.81,156.78,7.58284096]
[1727679296614,3.1884,156.81,156.77,11.12422]
[1727679296911,3.1884,156.81,156.78,7.58295245]
[1727679297110,3.1884,156.81,156.77,11.12422]
[1727679297505,3.1884,156.81,156.78,7.58294818]
[1727679297696,3.1884,156.81,156.77,11.12422]
[1727679301411,3.1884,156.81,156.77,3.31422]
[1727679301615,3.1884,156.81,156.77,0.12502]
[1727679302507,7.81,156.82,156.77,0.12502]
[1727679302702,3.1887,156.8,156.77,0.12502]
[1727679303413,3.1881,156.83,156.78,10.9989]
[1727679304304,3.1882,156.82,156.78,10.9989]
[1727679304908,3.1885,156.81,156.77,3.31412]
[1727679305312,7.81,156.81,156.77,0.12502]
[1727679305506,3.1888,156.79,156.77,0.12502]
[1727679305820,7.81,156.79,156.77,0.12502]
[1727679306312,3.189,156.78,156.77,0.12502]
[1727679306720,7.81,156.79,156.77,0.12502]
[1727679307020,78.48229061,156.86,156.77,0.12502]
[1727679307223,7.81,156.81,156.77,0.12502]
[1727679307611,3.1884,156.81,156.77,3.31412]
[1727679307917,78.48229061,156.86,156.78,7.81]
[1727679308118,3.1883,156.82,156.78,10.9989]
[1727679308317,7.81,156.83,156.78,10.9989]
[1727679308822,7.81,156.83,156.79,3.1888]
[1727679308823,3.1883,156.82,156.79,3.1888]
[1727679310511,3.1884,156.81,156.78,3.1889]
[1727679310735,7.81,156.83,156.78,3.1889]
[1727679310736,7.81,156.83,156.78,7.81]
[1727679312220,3.1883,156.82,156.79,3.1887]
[1727679312719,3.1884,156.81,156.78,3.1889]
[1727679315022,7.81,156.83,156.78,3.1889]
[1727679315212,7.81,156.85,156.8,3.1884]
[1727679315718,3.1879,156.84,156.8,3.1884]
[1727679316331,3.188,156.83,156.8,3.1884]
[1727679316826,7.81,156.85,156.81,7.81]
[1727679317022,3.1878,156.84,156.81,10.9982]
[1727679318223,3.1878,156.84,156.81,3.1882]
[1727679318923,7.81,156.85,156.8,7.81]
[1727679319129,3.188,156.83,156.8,10.9985]
[1727679321433,3.188,156.83,156.8,7.81]
[1727679322534,3.188,156.83,156.8,10.9985]
[1727679330259,3.188,156.83,156.8,7.81]
[1727679331133,3.188,156.83,156.79,3.1887]
[1727679331338,3.188,156.83,156.8,7.81]
[1727679339248,3.1882,156.82,156.8,7.81]
[1727679344458,7.81,156.85,156.8,7.81]
[1727679345357,3.188,156.83,156.8,10.9985]
[1727679351660,3.1884,156.81,156.78,3.1888]
[1727679352755,3.1884,156.81,156.77,11.12412]
[1727679354263,3.1884,156.81,156.78,7.57653143]
[1727679354464,3.1884,156.81,156.77,11.12412]
[1727679355159,3.1884,156.81,156.78,7.57887071]
[1727679355360,7.81,156.83,156.77,0.12502]
[1727679355563,7.81,156.83,156.77,7.93502]
[1727679355772,7.81,156.81,156.77,7.93502]
[1727679356666,3.1887,156.8,156.77,7.93502]
[1727679357060,3.1887,156.8,156.77,0.12502]
[1727679360259,3.1887,156.8,156.78,7.5890165]
[1727679360561,3.1887,156.8,156.77,0.12502]
[1727679360767,3.1887,156.8,156.78,7.58897206]
[1727679360964,3.1887,156.8,156.77,0.12502]
[1727679361167,3.1889,156.79,156.78,7.58897206]
[1727679361559,3.1889,156.79,156.77,0.12502]
[1727679361765,3.1887,156.8,156.77,0.12502]
[1727679362166,3.1887,156.8,156.78,7.59278715]
[1727679362466,7.81,156.8,156.77,0.12502]
[1727679362665,7.81,156.8,156.78,7.59262644]
[1727679362868,7.81,156.8,156.77,0.12502]
[1727679363363,10.999,156.78,156.77,0.12502]
[1727679364072,3.1899,156.74,156.71,0.12502]
[1727679364265,3.1899,156.74,156.72,25.77329188]
[1727679364565,3.1899,156.74,156.73,7.59372703]
[1727679365268,3.1899,156.74,156.71,0.12502]
[1727679365269,3.1899,156.74,156.71,3.31532]
[1727679365476,10.9996,156.75,156.73,7.59015114]
[1727679365665,10.9996,156.75,156.71,0.12502]
[1727679365867,7.81,156.75,156.72,13.61093347]
[1727679366062,7.81,156.75,156.71,3.31532]
[1727679366476,7.81,156.75,156.72,7.58688459]
[1727679366773,7.81,156.75,156.71,3.31532]
[1727679366971,7.81,156.75,156.72,7.58429654]
[1727679367174,7.81,156.75,156.71,3.31532]
[1727679367363,3.1898,156.74,156.72,7.58200951]
[1727679367563,3.1898,156.74,156.71,3.31532]
[1727679367769,3.1898,156.74,156.72,7.58200951]
[1727679367972,3.1898,156.74,156.71,3.31532]
[1727679368169,3.1898,156.74,156.72,7.58196509]
[1727679368378,3.1898,156.74,156.71,3.31532]
[1727679368873,3.1898,156.74,156.72,7.57999182]
[1727679369069,3.8066,156.81,156.72,7.81]
[1727679369375,7.81,156.78,156.73,7.81]
[1727679369671,3.1893,156.77,156.73,10.9998]
[1727679370267,3.1894,156.76,156.73,10.9998]
[1727679372976,3.1894,156.76,156.73,3.1898]
[1727679377384,3.8066,156.81,156.72,7.81]
[1727679377575,7.81,156.79,156.75,3.1894]
[1727679378081,3.1892,156.77,156.74,3.1897]
[1727679378880,7.81,156.79,156.73,3.19]
[1727679378881,3.1895,156.76,156.73,3.19]
[1727679380280,3.1897,156.75,156.71,3.31532]
[1727679380484,7.81,156.76,156.71,0.12502]
[1727679382387,3.19,156.74,156.71,0.12502]
[1727679388090,3.19,156.74,156.71,7.93502]
[1727679393689,3.8066,156.81,156.71,7.93502]
[1727679394003,7.81,156.77,156.71,11.12522]
[1727679394695,3.1896,156.75,156.71,11.12522]
[1727679395091,3.1896,156.75,156.72,3.1901]
[1727679397104,7.81,156.77,156.72,3.1901]
[1727679397301,3.1891,156.78,156.74,10.9997]
[1727679397499,7.81,156.8,156.74,10.9997]
[1727679398103,3.1892,156.77,156.74,10.9997]
[1727679400407,3.189,156.78,156.75,7.81]
[1727679400595,3.8066,156.81,156.75,10.9995]
[1727679400906,2.5346,156.81,156.76,7.81]
[1727679401103,3.1887,156.8,156.76,7.81]
[1727679401408,2.5346,156.81,156.77,3.1891]
[1727679401698,3.1886,156.8,156.76,7.81]
[1727679401903,3.1886,156.8,156.76,10.9993]
[1727679402800,3.1886,156.8,156.76,3.1893]
[1727679403007,3.1891,156.78,156.74,10.9997]
[1727679405001,3.1891,156.78,156.75,7.81]
[1727679406313,3.1891,156.78,156.74,10.9997]
[1727679406610,3.1892,156.77,156.74,7.81]
[1727679407810,3.1894,156.76,156.72,11.0001]
[1727679408121,3.1894,156.76,156.73,7.56556873]
[1727679408306,3.1894,156.76,156.72,11.0001]
[1727679408501,3.1894,156.76,156.72,3.1901]
[1727679408707,3.1894,156.76,156.73,7.56629052]
[1727679408919,3.1894,156.76,156.72,11.0001]
[1727679409111,3.1894,156.76,156.73,7.56634316]
[1727679409413,3.1894,156.76,156.72,11.0001]
[1727679409613,3.1894,156.76,156.73,7.56706351]
[1727679409813,3.1894,156.76,156.72,11.0001]
[1727679410014,3.1894,156.76,156.73,7.56706351]
[1727679410214,3.1894,156.76,156.72,11.0001]
[1727679410421,3.1894,156.76,156.73,7.56782013]
[1727679410614,3.1894,156.76,156.72,11.0001]
[1727679410809,3.1894,156.76,156.73,7.56782013]
[1727679411010,3.1894,156.76,156.72,11.0001]
[1727679411211,3.1894,156.76,156.73,7.56782024]
[1727679411417,3.1894,156.76,156.72,11.0001]
[1727679411615,3.1894,156.76,156.73,7.56861502]
[1727679411817,3.1894,156.76,156.72,11.0001]
[1727679412019,3.1894,156.76,156.73,7.56861502]
[1727679412216,3.1894,156.76,156.72,11.0001]
[1727679412407,3.1894,156.76,156.73,7.56945046]
[1727679412612,3.1894,156.76,156.72,11.0001]
[1727679412812,3.1894,156.76,156.73,7.56951697]
[1727679413014,3.1894,156.76,156.72,11.0001]
[1727679413216,3.1894,156.76,156.73,7.57011636]
[1727679413518,3.1894,156.76,156.72,11.0001]
[1727679413710,3.1894,156.76,156.73,7.57042743]
[1727679413906,3.1894,156.76,156.72,11.0001]
[1727679414107,3.1894,156.76,156.73,7.57043396]
[1727679414309,3.1898,156.75,156.71,3.31542]
[1727679414522,2.6033,156.78,156.72,7.57157538]
[1727679414723,7.81,156.77,156.72,7.81]
[1727679414939,7.81,156.77,156.71,7.93502]
[1727679415916,3.1899,156.74,156.71,7.93502]
[1727679417523,3.1901,156.73,156.71,0.12502]
[1727679419224,3.1902,156.72,156.71,0.12502]
[1727679419420,7.81,156.74,156.71,7.7020493]
[1727679419616,7.81,156.74,156.71,0.12502]
[1727679420527,3.1901,156.73,156.71,0.12502]
[1727679422518,11.0002,156.72,156.71,0.12502]
[1727679448455,7.81,156.72,156.65,0.12502]
[1727679448656,7.81,156.67,156.65,0.12502]
[1727679448949,11.0014,156.66,156.65,0.12502]
[1727679449655,3.1914,156.66,156.65,0.12502]
[1727679449952,11.0014,156.66,156.65,0.12502]
[1727679451059,3.1914,156.66,156.65,0.12502]
[1727679454449,78.54874277,156.73,156.65,7.93502]
[1727679454654,78.54874277,156.73,156.67,7.81]
[1727679454655,7.81,156.72,156.67,7.81]
[1727679455454,3.1909,156.69,156.67,7.81]
[1727679458056,3.1909,156.69,156.66,3.1913]
[1727679458057,3.191,156.68,156.65,0.12502]
[1727679458365,7.81,156.7,156.65,11.12662]
[1727679459164,3.1911,156.68,156.65,11.12662]
[1727679461372,3.1911,156.68,156.65,7.93502]
[1727679465469,3.1913,156.67,156.65,7.93502]
[1727679465968,7.81,156.7,156.65,7.93502]
[1727679466160,3.1911,156.68,156.65,7.93502]
[1727679466359,3.1911,156.68,156.66,7.81]
[1727679468265,3.1911,156.68,156.65,0.12502]
[1727679468567,3.1911,156.68,156.66,7.81]
[1727679472375,7.81,156.7,156.65,0.12502]
[1727679472670,7.81,156.7,156.65,7.93502]
[1727679472870,7.81,156.72,156.66,7.81]
[1727679473074,3.1911,156.68,156.66,7.81]
[1727679473276,7.81,156.72,156.66,7.81]
[1727679475263,3.1909,156.69,156.66,7.81]
[1727679477175,3.1909,156.69,156.66,11.0014]
[1727679477679,3.1909,156.69,156.66,3.1914]
[1727679478088,3.1909,156.69,156.66,11.0014]
[1727679479465,7.81,156.72,156.66,7.81]
[1727679480083,3.191,156.69,156.66,7.81]
[1727679480377,7.81,156.7,156.65,11.12652]
[1727679480565,7.81,156.7,156.65,3.31652]
[1727679480767,3.1911,156.68,156.65,11.12652]
[1727679482676,7.81,156.7,156.65,0.12502]
[1727679482878,3.1914,156.66,156.65,0.12502]
[1727679487872,78.54874277,156.73,156.65,7.93502]
[1727679488071,78.54874277,156.73,156.67,7.81]
[1727679488269,78.54874277,156.73,156.69,7.81]
[1727679488969,86.35874277,156.73,156.69,7.81]
[1727679489672,86.35874277,156.73,156.67,11.0011]
[1727679490175,3.9336,156.76,156.67,11.0011]
[1727679490482,3.1906,156.7,156.67,11.0011]
[1727679491276,3.1898,156.74,156.7,3.1905]
[1727679491579,7.81,156.75,156.7,7.81]
[1727679492477,3.1903,156.72,156.7,7.81]
[1727679492985,3.1903,156.72,156.68,3.191]
[1727679493184,3.1903,156.72,156.69,15.39887698]
[1727679493385,3.1903,156.72,156.69,7.81]
[1727679493582,0.12502,156.77,156.7,7.81]
[1727679493789,0.12502,156.77,156.75,7.81]
[1727679498192,0.12502,156.77,156.76,7.81]
[1727679499387,0.12502,156.77,156.76,10.9994]
[1727679499595,0.12502,156.77,156.76,7.81]
[1727679500981,0.12502,156.77,156.76,10.9994]
[1727679502494,0.12502,156.77,156.73,3.1331051]
[1727679502684,3.31422,156.77,156.74,3.1896]
[1727679502890,3.31422,156.77,156.74,10.9996]
[1727679503887,3.1894,156.76,156.74,7.81]
[1727679504097,0.12502,156.77,156.7,2.6144]
[1727679504397,0.12502,156.77,156.72,7.81]
[1727679504595,3.1895,156.76,156.72,7.81]
[1727679504790,0.12502,156.77,156.72,7.81]
[1727679505789,3.1897,156.75,156.72,7.81]
[1727679506596,3.1898,156.74,156.72,7.81]
[1727679507896,3.19,156.73,156.72,7.81]
[1727679508193,7.93502,156.77,156.7,7.81]
[1727679508600,7.81,156.75,156.7,7.81]
[1727679508903,7.81,156.75,156.69,7.81]
[1727679509107,3.1904,156.71,156.69,7.81]
[1727679510398,3.1901,156.73,156.69,11.0007]
[1727679510593,3.1901,156.73,156.7,7.81]
[1727679513401,3.1902,156.72,156.7,7.81]
[1727679516196,3.1902,156.72,156.69,11.0008]
[1727679517199,3.1899,156.74,156.69,7.81]
[1727679517404,7.81,156.75,156.69,7.81]
[1727679517701,3.1903,156.72,156.69,7.81]
[1727679518705,3.1903,156.72,156.69,11.0008]
[1727679519108,3.1903,156.72,156.7,7.81]
[1727679524705,3.1903,156.72,156.69,3.1908]
[1727679524901,7.81,156.73,156.66,1.3158]
[1727679525201,3.9086,156.76,156.66,7.81]
[1727679525202,7.81,156.72,156.66,7.81]
[1727679526003,3.1909,156.69,156.66,7.81]
[1727679527597,3.1909,156.69,156.66,11.0014]
[1727679528014,7.81,156.72,156.66,11.0014]
[1727679528210,3.1907,156.7,156.66,7.81]
[1727679528415,3.1907,156.7,156.67,3.1912]
[1727679530419,3.1907,156.7,156.66,11.0013]
[1727679535207,7.81,156.7,156.65,0.12502]
[1727679535515,3.9086,156.76,156.65,0.12502]
[1727679535516,3.1913,156.67,156.65,0.12502]
[1727679537526,7.81,156.68,156.65,0.12502]
[1727679537822,3.1914,156.66,156.65,0.12502]
[1727679545327,3.1914,156.67,156.65,0.12502]
[1727679545627,7.81,156.68,156.65,0.12502]
[1727679546028,3.1913,156.67,156.65,0.12502]
[1727679547026,7.81,156.68,156.65,0.12502]
[1727679547226,3.1914,156.66,156.65,0.12502]
[1727679564741,11.0014,156.66,156.65,0.12502]
[1727679570231,3.1914,156.66,156.65,0.12502]
[1727679570437,11.0014,156.66,156.65,0.12502]
[1727679578159,3.1926,156.61,156.59,0.12502]
[1727679578453,11.0026,156.61,156.6,7.57354762]
[1727679578648,3.1926,156.61,156.59,0.12502]
[1727679583863,3.1926,156.6,156.59,0.12502]
[1727679584059,7.81,156.62,156.59,7.69820515]
[1727679584262,7.81,156.62,156.59,0.12502]
[1727679585259,3.1926,156.6,156.59,0.12502]
[1727679585447,3.1926,156.6,156.59,7.69853684]
[1727679587056,11.0026,156.6,156.59,7.69853684]
[1727679587364,11.0026,156.6,156.59,0.12502]
[1727679588061,11.0026,156.6,156.55,12.11898971]
[1727679588062,3.1935,156.56,156.55,12.11898971]
[1727679588261,7.81,156.56,156.53,0.12502]
[1727679590162,3.1935,156.56,156.53,0.12502]
[1727679590461,7.81,156.58,156.53,7.93502]
[1727679590769,11.0032,156.58,156.54,3.1939]
[1727679591261,3.1933,156.57,156.54,3.1939]
[1727679592163,7.81,156.58,156.54,3.1939]
[1727679592461,11.0032,156.58,156.54,3.1939]
[1727679593070,3.1934,156.57,156.54,3.1939]
[1727679593272,7.81,156.58,156.54,3.1939]
[1727679593659,11.0031,156.58,156.54,3.1939]
[1727679595758,3.1934,156.57,156.54,3.1939]
[1727679596370,3.1935,156.56,156.53,3.31902]
[1727679599572,7.81,156.57,156.53,0.12502]
[1727679599766,11.0033,156.57,156.54,3.1938]
[1727679600475,3.1935,156.56,156.53,3.31892]
[1727679601173,3.1937,156.55,156.53,0.12502]
[1727679601365,7.81,156.55,156.53,0.12502]
[1727679602081,3.1939,156.54,156.53,0.12502]
[1727679607573,3.1925,156.61,156.53,0.12502]
[1727679607875,7.81,156.57,156.53,0.12502]
[1727679608376,3.1938,156.55,156.53,0.12502]
[1727679608973,2.5826,156.6,156.53,7.93502]
[1727679609175,3.1933,156.57,156.54,3.1937]
[1727679609884,3.1931,156.58,156.55,11.0035]
[1727679610278,71.5767,156.64,156.55,7.81]
[1727679610472,2.5767,156.64,156.56,3.26994842]
[1727679610673,10.3867,156.64,156.59,7.81]
[1727679611582,3.1931,156.58,156.55,3.1935]
[1727679611881,3.1931,156.58,156.55,11.0035]
[1727679612381,2.5767,156.64,156.54,9.1221]
[1727679612382,7.81,156.6,156.54,9.1221]
[1727679613270,3.1932,156.58,156.55,3.1936]
[1727679614076,3.1926,156.61,156.57,3.1931]
[1727679614287,7.81,156.62,156.57,3.1931]
[1727679614467,7.81,156.62,156.56,7.81]
[1727679614672,3.1926,156.61,156.56,7.81]
[1727679614869,7.81,156.62,156.56,7.81]
[1727679615082,2.5767,156.64,156.56,7.81]
[1727679615285,7.81,156.62,156.56,7.81]
[1727679615477,7.81,156.62,156.54,1.3121]
[1727679615679,7.81,156.62,156.57,7.81]
[1727679616487,2.5767,156.64,156.57,7.81]
[1727679616689,2.5767,156.64,156.56,3.21341664]
[1727679616690,2.5767,156.64,156.58,7.81]
[1727679617785,2.5767,156.64,156.6,7.81]
[1727679618484,1.42082,156.65,156.63,7.81]
[1727679618689,0.12502,156.65,156.63,7.81]
[1727679619884,0.12502,156.65,156.63,11.0018]
[1727679620589,0.12502,156.65,156.64,7.81]
[1727679620791,0.12502,156.65,156.64,11.0018]
[1727679625086,0.12502,156.65,156.64,7.81]
[1727679625300,0.12502,156.65,156.63,11.002]
[1727679625798,0.12502,156.65,156.61,3.8959]
[1727679625998,7.93502,156.65,156.56,59.93449562]
[1727679626306,7.93502,156.65,156.6,7.81]
[1727679626801,3.192,156.64,156.61,3.1924]
[1727679627895,3.192,156.64,156.6,7.81]
[1727679628788,7.93502,156.65,156.57,1.2904]
[1727679628984,3.1921,156.63,156.6,11.0025]
[1727679630092,7.93502,156.65,156.6,7.81]
[1727679630302,3.1919,156.64,156.61,11.0024]
[1727679630897,0.12502,156.65,156.61,7.81]
[1727679631096,3.31672,156.65,156.62,3.1922]
[1727679631595,3.31672,156.65,156.57,1.2904]
[1727679631800,3.31672,156.65,156.61,11.0023]
[1727679632898,3.1918,156.64,156.61,11.0023]
[1727679633501,3.31672,156.65,156.63,7.81]
[1727679633887,0.12502,156.65,156.63,7.81]
[1727679634199,0.12502,156.65,156.62,3.1921]
[1727679634393,0.12502,156.65,156.62,7.81]
[1727679634700,3.1918,156.64,156.62,7.81]
[1727679635103,0.12502,156.65,156.62,11.0022]
[1727679635699,7.81,156.64,156.59,3.1927]
[1727679636301,3.1924,156.62,156.59,3.1927]
[1727679637804,3.1924,156.62,156.59,11.0027]
[1727679638200,0.12502,156.65,156.59,7.81]
[1727679638402,3.1922,156.63,156.6,7.81]
[1727679639206,3.1922,156.63,156.6,11.0026]
[1727679640509,7.93502,156.65,156.59,11.0027]
[1727679640705,7.81,156.64,156.58,7.81]
[1727679640912,7.81,156.62,156.58,7.81]
[1727679641809,3.1925,156.61,156.58,7.81]
[1727679642615,3.1925,156.61,156.58,11.003]
[1727679644417,3.1926,156.6,156.58,11.003]
[1727679645316,3.1925,156.61,156.58,11.003]
[1727679646815,10.3953,156.64,156.58,11.003]
[1727679647017,3.1926,156.6,156.58,11.003]
[1727679647916,3.1926,156.61,156.58,11.003]
[1727679649023,10.3953,156.64,156.59,3.1928]
[1727679649024,3.1924,156.62,156.59,3.1928]
[1727679649716,3.1924,156.61,156.59,3.1928]
[1727679649917,3.1924,156.61,156.59,11.0028]
[1727679652019,3.1924,156.62,156.59,11.0028]
[1727679653824,3.192,156.64,156.61,3.1923]
[1727679654427,3.192,156.64,156.62,7.81]
[1727679654627,0.12502,156.65,156.58,3.1929]
[1727679654825,0.12502,156.65,156.64,7.81]
[1727679656024,0.12502,156.65,156.64,11.0018]
[1727679664731,0.12502,156.65,156.64,14.19943729]
[1727679670734,0.12502,156.65,156.59,1.347]
[1727679670931,3.31662,156.65,156.62,3.1921]
[1727679671129,3.31662,156.65,156.62,11.0021]
[1727679672139,3.1919,156.64,156.62,7.81]
[1727679673041,3.192,156.63,156.6,3.1925]
[1727679673243,7.93502,156.65,156.6,11.0025]
[1727679673538,7.93502,156.65,156.6,7.81]
[1727679674138,0.12502,156.65,156.63,7.81]
[1727679674564,0.12502,156.65,156.62,7.81]
[1727679675835,0.12502,156.65,156.6,7.81]
[1727679676234,0.12502,156.65,156.62,7.81]
[1727679676643,0.12502,156.65,156.64,7.81]
[1727679677744,0.12502,156.65,156.64,14.24443412]
[1727679677944,0.12502,156.65,156.64,11.0018]
[1727679678746,0.12502,156.65,156.62,11.0021]
[1727679680047,3.31662,156.65,156.62,11.0021]
[1727679681545,0.12502,156.65,156.62,11.0021]
[1727679681950,0.12502,156.65,156.64,7.81]
[1727679682941,0.12502,156.65,156.64,11.0018]
[1727679685246,0.12502,156.65,156.64,7.81]
[1727679688048,0.12502,156.65,156.64,11.0018]
[1727679688247,0.12502,156.65,156.64,7.81]
[1727679688647,0.12502,156.65,156.64,11.0018]
[1727679688851,0.12502,156.65,156.64,14.19058528]
[1727679690051,0.12502,156.71,156.64,10.99878528]
[1727679690256,0.12502,156.71,156.69,7.81]
[1727679691150,3.31542,156.71,156.69,7.81]
[1727679694652,3.31542,156.71,156.68,11.0009]
[1727679694852,3.1906,156.7,156.67,3.1911]
[1727679695051,3.1906,156.7,156.67,11.0011]
[1727679696058,3.1909,156.69,156.66,6.35863703]
[1727679696359,0.12502,156.71,156.67,7.81]
[1727679696857,3.1908,156.7,156.67,11.0012]
[1727679697061,0.12502,156.71,156.67,7.81]
[1727679697361,3.1909,156.69,156.67,7.81]
[1727679698456,3.191,156.68,156.67,7.81]
[1727679698962,7.81,156.7,156.66,7.81]
[1727679699358,7.81,156.69,156.58,70.2423]
[1727679699558,3.1916,156.66,156.63,7.81]
[1727679699860,7.81,156.69,156.63,7.81]
[1727679700066,3.1917,156.65,156.63,7.81]
[1727679706068,7.81,156.67,156.58,70.2423]
[1727679706261,7.81,156.67,156.61,7.81]
[1727679706574,3.1921,156.63,156.6,3.1926]
[1727679706774,3.1921,156.63,156.61,7.81]
[1727679707670,3.1921,156.63,156.6,3.1926]
[1727679707860,3.1921,156.63,156.61,7.81]
[1727679709368,7.81,156.67,156.61,7.81]
[1727679709369,3.1919,156.64,156.61,7.81]
[1727679709566,7.81,156.69,156.62,11.0022]
[1727679709767,7.81,156.69,156.64,7.81]
[1727679710574,3.1916,156.66,156.64,7.81]
[1727679710873,2.6389,156.7,156.65,7.81]
[1727679711071,3.1913,156.67,156.65,7.81]
[1727679711968,3.1914,156.66,156.65,7.81]
[1727679713768,3.1912,156.68,156.65,7.81]
[1727679714075,3.1912,156.68,156.67,7.81]
[1727679714271,2.6389,156.7,156.67,7.81]
[1727679714571,3.1909,156.69,156.67,7.81]
[1727679717672,3.191,156.68,156.67,7.81]
[1727679719077,3.1912,156.67,156.64,3.1917]
[1727679719278,3.1912,156.67,156.65,7.81]
[1727679720584,3.1912,156.67,156.66,7.81]
[1727679721884,3.1911,156.68,156.66,7.81]
[1727679722769,3.1915,156.66,156.62,3.192]
[1727679722970,3.1915,156.66,156.64,7.81]
[1727679724385,3.1918,156.65,156.58,1.2823]
[1727679724581,3.1918,156.65,156.63,7.81]
[1727679725689,7.81,156.68,156.63,7.81]
[1727679725986,3.1918,156.65,156.63,7.81]
[1727679732694,3.8356,156.7,156.63,7.81]
[1727679732695,3.1918,156.64,156.63,7.81]
[1727679732891,7.81,156.66,156.62,7.81]
[1727679733491,3.192,156.64,156.62,7.81]
[1727679738507,3.8356,156.7,156.63,7.81]
[1727679738710,3.8356,156.7,156.65,7.81]
[1727679739102,3.1908,156.69,156.66,7.81]
[1727679739298,2.5804,156.7,156.67,7.81]
[1727679739505,0.12502,156.71,156.67,7.81]
[1727679739904,3.1909,156.69,156.67,7.81]
[1727679741706,0.12502,156.71,156.68,7.81]
[1727679741911,0.12502,156.71,156.7,7.81]
[1727679746218,3.31542,156.71,156.7,7.81]
[1727679749213,0.12502,156.71,156.7,7.81]
[1727679750221,0.12502,156.71,156.7,11.0006]
[1727679754120,0.12502,156.71,156.7,3.1906]
[1727679754322,0.12502,156.71,156.67,6.34184152]
[1727679754323,3.1907,156.7,156.67,6.34184152]
[1727679754525,0.12502,156.71,156.69,7.81]
[1727679755421,3.31552,156.71,156.69,7.81]
[1727679755723,0.12502,156.71,156.69,7.81]
[1727679756325,3.1906,156.7,156.69,7.81]
[1727679758928,3.31552,156.71,156.69,7.81]
[1727679759117,3.31552,156.71,156.7,7.81]
[1727679759618,3.31542,156.71,156.7,7.81]
[1727679761320,3.1906,156.7,156.67,3.1911]
[1727679761622,3.1906,156.7,156.69,7.81]
[1727679764927,3.31552,156.71,156.69,7.81]
[1727679765836,3.31552,156.71,156.7,7.81]
[1727679769428,0.12502,156.71,156.7,11.0006]
[1727679769819,0.12502,156.71,156.7,7.81]
[1727679770234,0.12502,156.71,156.66,3.21692801]
[1727679770431,3.1909,156.69,156.67,7.81]
[1727679770731,0.12502,156.71,156.66,7.81]
[1727679771029,3.1912,156.67,156.66,7.81]
[1727679771222,7.81,156.69,156.63,7.81]
[1727679771624,3.1918,156.65,156.63,7.81]
[1727679772539,3.192,156.64,156.61,7.81]
[1727679773035,1.3523,156.7,156.6,1.3022]
[1727679773036,7.81,156.69,156.62,7.81]
[1727679773831,7.81,156.69,156.6,1.3022]
[1727679774037,7.81,156.67,156.62,7.81]
[1727679775039,3.192,156.63,156.61,7.81]
[1727679784146,7.81,156.66,156.6,7.81]
[1727679784845,3.1922,156.63,156.6,7.81]
[1727679785143,3.1922,156.63,156.6,11.0026]
[1727679785947,3.1922,156.63,156.61,7.81]
[1727679794054,3.1919,156.64,156.61,11.0024]